fUSD/lending_fUSD_20260426
["ID","MTS","AMOUNT","RATE_DAILY","PERIOD"]
[421144197,1777161097811,-300.0,0.00024658,2]
[421144198,1777161097821,-300.0,0.00024658,2]
[421144199,1777161097830,-300.0,0.00024658,2]
[421144200,1777161097841,-300.0,0.00024658,2]
[421144201,1777161097850,-300.0,0.00024658,2]
[421144202,1777161097859,-300.0,0.00024658,2]
[421144203,1777161097869,-300.0,0.00024658,2]
[421144204,1777161097879,-300.0,0.00024658,2]
[421144205,1777161097888,-300.0,0.00024658,2]
[421144206,1777161097898,-300.0,0.00024658,2]
[421144207,1777161097908,-300.0,0.00024658,2]
[421144208,1777161097918,-300.0,0.00024658,2]
[421144209,1777161097929,-300.0,0.00024658,2]
[421144210,1777161097939,-300.0,0.00024658,2]
[421144211,1777161097949,-300.0,0.00024658,2]
[421144212,1777161097959,-300.0,0.00024658,2]
[421144213,1777161097968,-300.0,0.00024658,2]
[421144214,1777161097978,-300.0,0.00024658,2]
[421144215,1777161097989,-300.0,0.00024658,2]
[421144216,1777161097999,-300.0,0.00024658,2]
[421144217,1777161098008,-300.0,0.00024658,2]
[421144218,1777161098018,-300.0,0.00024658,2]
[421144219,1777161098028,-300.0,0.00024658,2]
[421144220,1777161098038,-300.0,0.00024658,2]
[421144221,1777161098047,-300.0,0.00024658,2]
[421144222,1777161098057,-300.0,0.00024658,2]
[421144223,1777161098067,-300.0,0.00024658,2]
[421144224,1777161098078,-300.0,0.00024658,2]
[421144225,1777161098489,-300.0,0.00024658,2]
[421144226,1777161098499,-300.0,0.00024658,2]
[421144227,1777161098508,-300.0,0.00024658,2]
[421144228,1777161098518,-300.0,0.00024658,2]
[421144229,1777161098527,-300.0,0.00024658,2]
[421144230,1777161098537,-300.0,0.00024658,2]
[421144231,1777161098547,-300.0,0.00024658,2]
[421144232,1777161098556,-300.0,0.00024658,2]
[421144233,1777161098566,-300.0,0.00024658,2]
[421144234,1777161098575,-300.0,0.00024658,2]
[421144235,1777161098585,-300.0,0.00024658,2]
[421144236,1777161098594,-300.0,0.00024658,2]
[421144237,1777161098603,-300.0,0.00024658,2]
[421144238,1777161098612,-300.0,0.00024658,2]
[421144239,1777161098622,-300.0,0.00024658,2]
[421144240,1777161098631,-300.0,0.00024658,2]
[421144241,1777161098640,-300.0,0.00024658,2]
[421144242,1777161098649,-300.0,0.00024658,2]
[421144243,1777161098659,-300.0,0.00024658,2]
[421144244,1777161098668,-300.0,0.00024658,2]
[421144245,1777161098678,-300.0,0.00024658,2]
[421144246,1777161098687,-300.0,0.00024658,2]
[421144247,1777161098696,-300.0,0.00024658,2]
[421144248,1777161098706,-300.0,0.00024658,2]
[421144249,1777161098715,-300.0,0.00024658,2]
[421144250,1777161098724,-300.0,0.00024658,2]
[421144251,1777161098734,-300.0,0.00024658,2]
[421144252,1777161098743,-300.0,0.00024658,2]
[421144253,1777161098753,-300.0,0.00024658,2]
[421144254,1777161098762,-300.0,0.00024658,2]
[421144255,1777161098772,-300.0,0.00024658,2]
[421144256,1777161098781,-150.0,0.00024658,2]
[421144257,1777161098791,-381.88,0.00024736,2]
[421144258,1777161098801,-638.09,0.00024773,2]
[421144259,1777161098810,-3231.55,0.000248,7]
[421144260,1777161098820,-2664.73,0.000248,7]
[421144261,1777161098830,-505.0,0.00024875,11]
[421144262,1777161098840,-1800.0,0.000249,2]
[421144263,1777161098850,-750.0,0.000249,7]
[421144264,1777161098860,-428.45,0.00025,2]
[421144265,1777161098871,-199.999999,0.00025,120]
[421144266,1777161098881,-3072.12151925,0.00025,2]
[421144267,1777161098890,-7194.92253001,0.00025,2]
[421144268,1777161098900,-4835.26834536,0.00025,2]
[421144269,1777161098910,-5004.24,0.00025,6]
[421144270,1777161098920,-10085.10547541,0.00025,2]
[421144271,1777161098930,-160.0,0.00025,7]
[421144272,1777161098940,-7030.98164058,0.00025,21]
[421144273,1777161098950,-683.0,0.00025,2]
[421144274,1777161098959,-1003.0,0.00025,2]
[421144275,1777161098969,-1088.93235307,0.00025,2]
[421144276,1777161098979,-298.0,0.00025,2]
[421144277,1777161098988,-3876.0,0.00025,2]
[421144278,1777161098998,-550.0,0.00025,2]
[421144279,1777161099008,-532.0,0.00025,2]
[421144280,1777161099017,-199.0,0.00025,2]
[421144281,1777161099027,-880.88520167,0.00025164,2]
[421144282,1777161099038,-8653.83439069,0.000252,120]
[421144283,1777161099048,-564.57820314,0.00025252,60]
[421144284,1777161099058,-370.36851852,0.00025279,7]
[421144285,1777161099067,-657.03340624,0.00025285,2]
[421144286,1777161099077,-500.0,0.00025293,120]
[421144287,1777161099087,-2699.8,0.000253,7]
[421144288,1777161099097,-1905.71,0.000253,7]
[421144289,1777161099107,-305.15093473,0.00025449,60]
[421144290,1777161099117,-4500.0,0.00025463,7]
[421144291,1777161099126,-600.0,0.00025479,2]
[421144292,1777161099136,-152.0,0.00025571,8]
[421144293,1777161099146,-484.43,0.00025605,30]
[421144294,1777161099156,-381.88,0.00025675,2]
[421144295,1777161099166,-197.69658,0.000257,2]
[421144296,1777161099177,-500.0,0.00025756,7]
[421144297,1777161099187,-2000.0,0.000258,30]
[421144298,1777161099198,-170.29,0.00025842,2]
[421144299,1777161099208,-500.0,0.00025855,2]
[421144300,1777161099219,-348.6747703,0.00025863,7]
[421144301,1777161099229,-150.0,0.0002589,2]
[421144302,1777161099239,-305.15093473,0.00025958,60]
[421144303,1777161099250,-564.57820314,0.00025973,120]
[421144304,1777161099260,-4564.81730147,0.00026,2]
[421144305,1777161099269,-267.02899715,0.00026,120]
[421144306,1777161099279,-229.73,0.00026,2]
[421144307,1777161099290,-215.32,0.00026,2]
[421144308,1777161099299,-160.36,0.00026,2]
[421144309,1777161099309,-229.71,0.00026,2]
[421144310,1777161099319,-3231.55,0.000261,7]
[421144311,1777161099328,-2664.73,0.000261,7]
[421144312,1777161099338,-195.34265548,0.000261,120]
[421144313,1777161099347,-505.0,0.00026128,12]
[421144314,1777161099357,-900.0,0.00026301,2]
[421144315,1777161099366,-3036.31024134,0.00026309,60]
[421144316,1777161099376,-1002.949993,0.00026357,78]
[421144317,1777161099386,-370.36851852,0.00026375,7]
[421144318,1777161099395,-2699.8,0.000264,7]
[421144319,1777161099405,-27747.96019131,0.000264,2]
[421144320,1777161099416,-570.53,0.00026411,2]
[421144321,1777161099425,-478.08,0.00026412,2]
[421144322,1777161099435,-1905.71,0.000265,7]
[421144323,1777161099446,-500.0,0.00026558,120]
[421144324,1777161099456,-381.87999999,0.00026614,2]
[421144325,1777161099467,-564.57820314,0.00026694,120]
[421144326,1777161099477,-152.0,0.00026841,9]
[421144327,1777161099487,-2226.05189,0.0002688,30]
[421144328,1777161099496,-150.0,0.00027,120]
[421144329,1777161099506,-162.24807931,0.00027,3]
[421144330,1777161099516,-158.0,0.00027,2]
[421144331,1777161099526,-160.0,0.00027,3]
[421144332,1777161099536,-2000.0,0.00027,2]
[421144333,1777161099546,-600.0,0.00027,2]
[421144334,1777161099555,-2551.467407,0.0002701,2]
[421144335,1777161099564,-2024.20682756,0.00027083,60]
[421144336,1777161099574,-1200.0,0.00027123,2]
[421144337,1777161099583,-248.49864664,0.0002716,7]
[421144338,1777161099593,-1444.0,0.00027178,120]
[421144339,1777161099603,-150.0,0.00027185,2]
[421144340,1777161099613,-570.37,0.00027239,2]
[421144341,1777161099622,-166.161106,0.000273,30]
[421144342,1777161099632,-505.0,0.00027381,14]
[421144343,1777161099641,-163.6,0.0002739,7]
[421144344,1777161099651,-4151.64542987,0.0002739,2]
[421144345,1777161099661,-8201.72057414,0.0002739,2]
[421144346,1777161099671,-584.08189471,0.00027397,2]
[421144347,1777161099681,-339.53,0.00027397,120]
[421144348,1777161099691,-500.0,0.00027397,2]
[421144349,1777161099700,-1500.0,0.00027397,2]
[421144350,1777161099711,-151.0,0.00027397,2]
[421144351,1777161099721,-151.0,0.00027397,2]
[421144352,1777161099731,-151.0,0.00027397,2]
[421144353,1777161099740,-151.0,0.00027397,2]
[421144354,1777161099750,-295.998161,0.00027397,2]
[421144355,1777161099759,-1687.240928,0.00027397,2]
[421144356,1777161099770,-1687.240928,0.00027397,2]
[421144357,1777161099779,-1687.240928,0.00027397,2]
[421144358,1777161099788,-1687.240928,0.00027397,2]
[421144359,1777161099799,-1687.240928,0.00027397,2]
[421144360,1777161099808,-1687.240928,0.00027397,2]
[421144361,1777161099819,-1687.240928,0.00027397,2]
[421144362,1777161099828,-1687.240928,0.00027397,2]
[421144363,1777161099838,-1687.240928,0.00027397,2]
[421144364,1777161099848,-1687.240928,0.00027397,2]
[421144365,1777161099858,-1687.240928,0.00027397,2]
[421144366,1777161099867,-1687.240928,0.00027397,2]
[421144367,1777161099878,-1687.240928,0.00027397,2]
[421144368,1777161099887,-1687.240928,0.00027397,2]
[421144369,1777161099897,-1687.240928,0.00027397,2]
[421144370,1777161099906,-1687.240928,0.00027397,2]
[421144371,1777161099916,-1687.240928,0.00027397,2]
[421144372,1777161099926,-1687.240928,0.00027397,2]
[421144373,1777161099935,-1687.240928,0.00027397,2]
[421144374,1777161099945,-1687.240928,0.00027397,2]
[421144375,1777161099955,-61509.18,0.00027397,10]
[421144376,1777161099964,-500.0,0.00027397,5]
[421144377,1777161099975,-150.0,0.00027397,5]
[421144378,1777161099984,-500.0,0.00027452,2]
[421144379,1777161099994,-500.0,0.00027463,2]
[421144380,1777161100005,-370.36851852,0.00027471,7]
[421144381,1777161100015,-219.6366313,0.00027473,2]
[421144382,1777161100026,-500.0,0.00027507,2]
[421144383,1777161100036,-381.88,0.00027554,2]
[421144384,1777161100046,-500.0,0.00027562,2]
[421144385,1777161100057,-500.0,0.00027617,2]
[421144386,1777161100068,-339.53,0.00027644,120]
[421144387,1777161100077,-500.0,0.00027672,2]
[421144388,1777161100087,-2130.14804587,0.00027726,81]
[421144389,1777161100097,-500.0,0.00027726,7]
[421144390,1777161100107,-500.0,0.00027726,7]
[421144391,1777161100117,-500.0,0.00027726,7]
[421144392,1777161100127,-500.0,0.00027726,7]
[421144393,1777161100136,-500.0,0.00027726,7]
[421144394,1777161100151,-500.0,0.00027726,7]
[421144395,1777161100161,-500.0,0.00027726,7]
[421144396,1777161100171,-500.0,0.00027726,7]
[421144397,1777161100181,-500.0,0.00027726,7]
[421144398,1777161100191,-500.0,0.00027726,7]
[421144399,1777161100200,-500.0,0.00027726,7]
[421144400,1777161100211,-500.0,0.00027726,7]
[421144401,1777161100221,-500.0,0.00027726,7]
[421144402,1777161100230,-500.0,0.00027726,7]
[421144403,1777161100239,-500.0,0.00027726,7]
[421144404,1777161100250,-150.01273017,0.00027726,7]
[421144405,1777161100259,-500.0,0.00027726,7]
[421144406,1777161100269,-500.0,0.00027726,7]
[421144407,1777161100278,-500.0,0.00027726,7]
[421144408,1777161100288,-500.0,0.00027726,7]
[421144409,1777161100297,-500.0,0.00027726,7]
[421144410,1777161100307,-500.0,0.00027726,7]
[421144411,1777161100317,-500.0,0.00027726,7]
[421144412,1777161100326,-500.0,0.00027726,7]
[421144413,1777161100335,-500.0,0.00027726,7]
[421144414,1777161100345,-645.75503908,0.00027726,7]
[421144415,1777161100355,-500.0,0.00027726,7]
[421144416,1777161100365,-500.0,0.00027726,7]
[421144417,1777161100375,-500.0,0.00027726,7]
[421144418,1777161100384,-500.0,0.00027726,7]
[421144419,1777161100394,-500.0,0.00027726,7]
[421144420,1777161100403,-500.0,0.00027726,7]
[421144421,1777161100413,-310.20542133,0.00027726,7]
[421144422,1777161100422,-300.0,0.00027726,2]
[421144423,1777161100432,-201.75865272,0.00027726,2]
[421144424,1777161100442,-500.0,0.00027726,2]
[421144425,1777161100452,-500.0,0.00027727,2]
[421144426,1777161100462,-500.0,0.00027782,2]
[421144427,1777161100471,-2000.0,0.000278,60]
[421144428,1777161100482,-500.0,0.00027823,120]
[421144429,1777161100491,-500.0,0.00027837,2]
[421144430,1777161100501,-339.53,0.0002789,120]
[421144431,1777161100510,-500.0,0.00027892,2]
[421144432,1777161100519,-1500.0,0.00027945,5]
[421144433,1777161100529,-250.0,0.00027945,5]
[421144434,1777161100539,-500.0,0.00027947,2]
[421144435,1777161100548,-300.0,0.00027948,21]
[421144436,1777161100558,-250000.0,0.00028,2]
[421144437,1777161100567,-650.8831129,0.00028,2]
[421144438,1777161100576,-290.0,0.00028,2]
[421144439,1777161100587,-10000000.0,0.00028,120]
[421144440,1777161100596,-1000000.0,0.00028,120]
[421144441,1777161100606,-51374.63392443,0.00028,2]
[421144442,1777161100615,-160.0,0.00028,10]
[421144443,1777161100625,-160.0,0.00028,10]
[421144444,1777161100635,-557.49,0.00028,2]
[421144445,1777161100644,-557.49,0.00028,2]
[421144446,1777161100657,-557.49,0.00028,2]
[421144447,1777161100666,-557.49,0.00028,2]
[421144448,1777161100675,-557.49,0.00028,2]
[421144449,1777161100686,-557.49,0.00028,2]
[421144450,1777161100695,-557.49,0.00028,2]
[421144451,1777161100705,-557.49,0.00028,2]
[421144452,1777161100714,-557.49,0.00028,2]
[421144453,1777161100723,-557.49,0.00028,2]
[421144454,1777161100733,-700.0,0.00028,120]
[421144455,1777161100742,-350.0,0.00028,14]
[421144456,1777161100752,-71000.0,0.00028,7]
[421144457,1777161100762,-500.0,0.00028002,2]
[421144458,1777161100771,-500.0,0.00028057,2]
[421144459,1777161100782,-152.0,0.0002811,10]
[421144460,1777161100792,-339.53,0.00028137,120]
[421144461,1777161100802,-426.97,0.0002822,7]
[421144462,1777161100812,-339.53,0.00028384,120]
[421144463,1777161100821,-500.0,0.000284,120]
[421144464,1777161100831,-150.0,0.00028443,2]
[421144465,1777161100840,-381.88,0.00028493,2]
[421144466,1777161100854,-381.87833333,0.00028493,30]
[421144467,1777161100864,-276.20006356,0.00028493,30]
[421144468,1777161100873,-350.0,0.00028493,5]
[421144469,1777161100883,-151.0,0.000285,5]
[421144470,1777161100892,-151.0,0.000285,2]
[421144471,1777161100902,-1500.0,0.000285,2]
[421144472,1777161100911,-150.0,0.00028544,2]
[421144473,1777161100922,-430.125,0.0002855,45]
[421144474,1777161100932,-500.0,0.0002855,45]
[421144475,1777161100942,-500.0,0.0002855,45]
[421144476,1777161100951,-370.36851852,0.00028567,7]
[421144477,1777161100961,-339.53,0.0002863,120]
[421144478,1777161100970,-505.0,0.00028634,15]
[421144479,1777161100980,-1327.96986748,0.00028646,15]
[421144480,1777161100989,-200.0,0.00028665,2]
[421144481,1777161100999,-500.0,0.00028767,2]
[421144482,1777161101009,-210.53566661,0.00028767,2]
[421144483,1777161101019,-1817.42446403,0.00028767,5]
[421144484,1777161101028,-1000.0,0.00028767,5]
[421144485,1777161101038,-208.0,0.0002882,30]
[421144486,1777161101046,-151.26,0.00028855,2]
[421144487,1777161101056,-339.53,0.00028877,120]
[421144488,1777161101066,-182.85,0.00028878,7]
[421144489,1777161101075,-200.0,0.000289,2]
[421144490,1777161101085,-280.0,0.00028994,12]
[421144491,1777161101096,-1758.76249357,0.00029,2]
[421144492,1777161101106,-507.4297983,0.00029,2]
[421144493,1777161101116,-150.0,0.00029,120]
[421144494,1777161101125,-650.0,0.00029,2]
[421144495,1777161101135,-1500.0,0.00029,2]
[421144496,1777161101144,-450.0,0.00029041,5]
[421144497,1777161101154,-500.0,0.00029088,120]
[421144498,1777161101164,-339.53,0.00029123,120]
[421144499,1777161101173,-484.43,0.0002921,60]
[421144500,1777161101182,-339.53,0.0002937,120]
[421144501,1777161101192,-152.0,0.0002938,11]
[421144502,1777161101202,-1305.1708725,0.000294,30]
[421144503,1777161101211,-150.0,0.00029443,2]
[421144504,1777161101221,-426.97533259,0.00029452,7]
[421144505,1777161101230,-1069.0,0.000295,120]
[421144506,1777161101240,-49695.69042708,0.000295,120]
[421144507,1777161101249,-1500.0,0.000295,2]
[421144508,1777161101259,-550.0,0.00029589,5]
[421144509,1777161101269,-339.53,0.00029616,120]
[421144510,1777161101279,-303.07575897,0.00029645,30]
[421144511,1777161101288,-370.36851852,0.00029663,7]
[421144512,1777161101298,-188.53738933,0.00029808,14]
[421144513,1777161101308,-339.53,0.00029863,120]
[421144514,1777161101317,-505.0,0.00029887,16]
[421144515,1777161101326,-165.47527376,0.00029888,120]
[421144516,1777161101339,-79742.72986445,0.000299,2]
[421144517,1777161101348,-200.0,0.000299,2]
[421144518,1777161101357,-166.66583333,0.00029937,7]
[421144519,1777161101366,-296.11437764,0.00029938,86]
[421144520,1777161101376,-150.0,0.00029971,2]
[421144521,1777161101385,-500.0,0.00029973,120]
[421144522,1777161101395,-280.78513462,0.00029982,86]
[421144523,1777161101403,-279.35381541,0.00029987,86]
[421144524,1777161101412,-239.773963,0.0002999,2]
[421144525,1777161101422,-730.40892833,0.00029999,120]
[421144526,1777161101432,-4210.6194628,0.0003,2]
[421144527,1777161101441,-1000.0,0.0003,120]
[421144528,1777161101451,-200.0,0.0003,11]
[421144529,1777161101459,-200.0,0.0003,11]
[421144530,1777161101469,-200.0,0.0003,11]
[421144531,1777161101478,-200.0,0.0003,11]
[421144532,1777161101488,-167.44498024,0.0003,30]
[421144533,1777161101497,-512.0,0.0003,120]
[421144534,1777161101507,-500.0,0.0003,120]
[421144535,1777161101516,-3086.31,0.0003,45]
[421144536,1777161101526,-493.33410016,0.0003,7]
[421144537,1777161101535,-493.33410016,0.0003,7]
[421144538,1777161101545,-1014.83202,0.0003,120]
[421144539,1777161101554,-2000.0,0.0003,3]
[421144540,1777161101563,-322.73895631,0.0003,2]
[421144541,1777161101574,-1837.50925878,0.0003,2]
[421144542,1777161101583,-583.10269734,0.0003,4]
[421144543,1777161101593,-397.07561554,0.0003,120]
[421144544,1777161101602,-164.79004435,0.0003,2]
[421144545,1777161101612,-159.0,0.0003,120]
[421144546,1777161101621,-700.0,0.0003,120]
[421144547,1777161101631,-151.0,0.0003,5]
[421144548,1777161101640,-9127.10204215,0.0003,120]
[421144549,1777161101650,-316.5,0.0003,11]
[421144550,1777161101659,-1070.0,0.0003,120]
[421144551,1777161101669,-310.0,0.0003,120]
[421144552,1777161101678,-150.0,0.0003,2]
[421144553,1777161101687,-1040.17,0.0003,30]
[421144554,1777161101697,-18653.91932289,0.0003,2]
[421144555,1777161101706,-20088.76277446,0.0003,2]
[421144556,1777161101715,-160.0,0.0003,120]
[421144557,1777161101724,-160.0,0.0003,3]
[421144558,1777161101733,-160.0,0.0003,30]
[421144559,1777161101742,-160.0,0.0003,7]
[421144560,1777161101752,-153.54,0.0003,2]
[421144561,1777161101761,-11964.34555404,0.0003,3]
[421144562,1777161101770,-162.24807931,0.0003,3]
[421144563,1777161101780,-276.447167,0.0003,2]
[421144564,1777161101789,-162.24807931,0.0003,7]
[421144565,1777161101799,-193.155,0.0003,22]
[421144566,1777161101808,-1500.0,0.0003,2]
[421144567,1777161101818,-297.4253232,0.00030094,86]
[421144568,1777161101827,-339.53,0.0003011,120]
[421144569,1777161101837,-1085.48940697,0.0003013,2]
[421144570,1777161101846,-641.10414143,0.0003013,2]
[421144571,1777161101855,-203.9512037,0.0003013,2]
[421144572,1777161101864,-14007.21188983,0.0003013,2]
[421144573,1777161101874,-250.0,0.00030137,120]
[421144574,1777161101883,-250.0,0.00030137,120]
[421144575,1777161101892,-250.0,0.00030137,120]
[421144576,1777161101901,-250.0,0.00030137,120]
[421144577,1777161101910,-250.0,0.00030137,120]
[421144578,1777161101919,-1500.0,0.00030137,5]
[421144579,1777161101929,-351.85941203,0.00030137,5]
[421144580,1777161101940,-15710.01433398,0.000302,2]
[421144581,1777161101950,-500.0,0.00030352,120]
[421144582,1777161101963,-339.53,0.00030356,120]
[421144583,1777161101982,-150.0,0.00030443,2]
[421144584,1777161101999,-381.87833333,0.00030466,30]
[421144585,1777161102013,-411.56645579,0.00030467,87]
[421144586,1777161102030,-392.73,0.000305,2]
[421144587,1777161102048,-500.0,0.00030548,120]
[421144588,1777161102065,-339.53,0.00030603,120]
[421144589,1777161102082,-152.0,0.00030649,12]
[421144590,1777161102100,-152.0,0.00030649,5]
[421144591,1777161102117,-152.0,0.00030649,5]
[421144592,1777161102134,-370.36851852,0.00030759,7]
[421144593,1777161102151,-1626.82989927,0.0003084,2]
[421144594,1777161102164,-208.0,0.0003084,30]
[421144595,1777161102176,-339.53,0.00030849,120]
[421144596,1777161102193,-167.2,0.000309,120]
[421144597,1777161102212,-162.24807931,0.000309,7]
[421144598,1777161102228,-1520.59618,0.00031,120]
[421144599,1777161102243,-347.93298555,0.00031,5]
[421144600,1777161102260,-160.7,0.00031,120]
[421144601,1777161102277,-150.0,0.00031,120]
[421144602,1777161102289,-700.0,0.00031,2]
[421144603,1777161102300,-170.0,0.00031,14]
[421144604,1777161102317,-170.29,0.0003101,7]
[421144605,1777161102330,-279.79082718,0.00031012,88]
[421144606,1777161102344,-339.53,0.00031096,120]
[421144607,1777161102362,-500.0,0.00031123,120]
[421144608,1777161102376,-274.5802218,0.00031123,90]
[421144609,1777161102391,-505.0,0.0003114,17]
[421144610,1777161102404,-2000.0,0.000312,2]
[421144611,1777161102418,-151.0,0.00031331,2]
[421144612,1777161102432,-339.53,0.00031342,120]
[421144613,1777161102445,-1812.9547239,0.000314,4]
[421144614,1777161102458,-500.0,0.000314,120]
[421144615,1777161102472,-150.0,0.00031443,2]
[421144616,1777161102485,-150.0,0.0003147,2]
[421144617,1777161102498,-199.58183378,0.000315,2]
[421144618,1777161102513,-150.0,0.000315,2]
[421144619,1777161102526,-1134.13342827,0.00031507,5]
[421144620,1777161102540,-339.53,0.00031589,120]
[421144621,1777161102554,-280.54884144,0.00031606,90]
[421144622,1777161102568,-500.0,0.00031617,120]
[421144623,1777161102581,-500.0,0.00031699,120]
[421144624,1777161102596,-677.0,0.00031811,30]
[421144625,1777161102610,-1002.0,0.00031811,30]
[421144626,1777161102624,-1080.0,0.00031811,30]
[421144627,1777161102637,-298.0,0.00031811,30]
[421144628,1777161102651,-232.0,0.00031811,30]
[421144629,1777161102666,-1244.0,0.00031811,30]
[421144630,1777161102680,-552.0,0.00031811,30]
[421144631,1777161102695,-459.0,0.00031811,30]
[421144632,1777161102709,-3860.0,0.00031811,30]
[421144633,1777161102723,-531.0,0.00031815,30]
[421144634,1777161102737,-190.0,0.00031815,30]
[421144635,1777161102750,-223.0903586,0.00031836,14]
[421144636,1777161102763,-339.53,0.00031836,120]
[421144637,1777161102777,-370.36851852,0.00031855,7]
[421144638,1777161102791,-167.2,0.000319,120]
[421144639,1777161102805,-150.0,0.00031923,30]
[421144640,1777161102819,-510.89979488,0.0003195,90]
[421144641,1777161102832,-150.319617,0.00031962,2]
[421144642,1777161102847,-500.0,0.00032,120]
[421144643,1777161102860,-5721.8000184,0.00032,4]
[421144644,1777161102873,-478.45859646,0.00032,120]
[421144645,1777161102886,-50000.0,0.00032,120]
[421144646,1777161102899,-50000.0,0.00032,120]
[421144647,1777161102913,-7284.44,0.00032,120]
[421144648,1777161102927,-202.63356243,0.00032,5]
[421144649,1777161102940,-151.0,0.00032,2]
[421144650,1777161102954,-153.15207438,0.00032,7]
[421144651,1777161102968,-941.84,0.00032,120]
[421144652,1777161102982,-1905.71,0.00032,7]
[421144653,1777161102995,-339.53,0.00032082,120]
[421144654,1777161103009,-570.53,0.00032153,2]
[421144655,1777161103023,-500.0,0.00032274,120]
[421144656,1777161103037,-904.35013072,0.000323,2]
[421144657,1777161103050,-151.0,0.000323,120]
[421144658,1777161103063,-339.53,0.00032329,120]
[421144659,1777161103076,-213.73302622,0.00032389,91]
[421144660,1777161103091,-505.0,0.00032392,18]
[421144661,1777161103106,-555.73833332,0.00032438,30]
[421144662,1777161103119,-210.1236395,0.00032438,120]
[421144663,1777161103132,-150.0,0.00032443,2]
[421144664,1777161103147,-339.53,0.00032575,120]
[421144665,1777161103160,-251.74,0.0003269,30]
[421144666,1777161103172,-500.0,0.00032691,60]
[421144667,1777161103185,-500.0,0.00032691,60]
[421144668,1777161103198,-500.0,0.00032691,60]
[421144669,1777161103210,-500.0,0.00032691,60]
[421144670,1777161103223,-281.25,0.00032691,60]
[421144671,1777161103236,-500.0,0.00032691,60]
[421144672,1777161103249,-281.25,0.00032691,60]
[421144673,1777161103262,-500.0,0.00032691,60]
[421144674,1777161103275,-500.0,0.00032691,60]
[421144675,1777161103288,-227.8125,0.00032691,60]
[421144676,1777161103300,-281.25,0.00032691,60]
[421144677,1777161103313,-500.0,0.00032691,60]
[421144678,1777161103326,-500.0,0.00032691,60]
[421144679,1777161103339,-500.0,0.00032691,60]
[421144680,1777161103352,-700.0,0.00032691,60]
[421144681,1777161103364,-500.0,0.00032691,60]
[421144682,1777161103376,-500.0,0.00032691,60]
[421144683,1777161103389,-500.0,0.00032691,60]
[421144684,1777161103401,-700.0,0.00032691,60]
[421144685,1777161103413,-500.0,0.00032691,60]
[421144686,1777161103426,-500.0,0.00032691,60]
[421144687,1777161103438,-842.1155703,0.00032691,60]
[421144688,1777161103450,-700.0,0.00032691,60]
[421144689,1777161103463,-500.0,0.00032691,60]
[421144690,1777161103476,-500.0,0.00032691,60]
[421144691,1777161103487,-700.0,0.00032691,60]
[421144692,1777161103502,-500.0,0.00032691,60]
[421144693,1777161103514,-500.0,0.00032691,60]
[421144694,1777161103527,-700.0,0.00032691,60]
[421144695,1777161103540,-500.0,0.00032691,60]
[421144696,1777161103552,-500.0,0.00032691,60]